bitfinex-derivatives/quotes_BNBF0:USTF0_20250510
["timestamp","ask_amount","ask_price","bid_price","bid_amount"]
[1746898375057,0.30436304,657.11,656.49,1.17869192]
[1746898375557,0.30436304,657.11,656.5,1.17869192]
[1746898375756,0.26182721,657.1,656.5,1.17869192]
[1746898375958,0.3043723,657.09,656.51,1.17869192]
[1746898376456,0.3043723,657.09,656.52,1.17869192]
[1746898376751,0.3043723,657.09,656.53,1.17869192]
[1746898377551,0.3043723,657.09,656.54,1.17869192]
[1746898378054,0.3043723,657.09,655.41,0.9657312]
[1746898378252,0.3043723,657.09,655.42,0.6740473]
[1746898378450,0.3043723,657.09,655.43,0.6740473]
[1746898378651,0.3043723,657.09,655.44,0.6740473]
[1746898378954,0.3043723,657.09,655.45,0.6740473]
[1746898379153,0.3043723,657.09,655.46,0.95344615]
[1746898379356,0.3043723,657.09,655.47,0.67357138]
[1746898379556,0.3043723,657.09,655.48,1.84951262]
[1746898379853,0.3043723,657.09,655.49,0.67357138]
[1746898380059,0.3043723,657.09,655.5,0.67357138]
[1746898380255,0.3043723,657.09,655.51,1.84951262]
[1746898380455,0.3043723,657.09,655.52,0.67357138]
[1746898380657,0.26182082,657.08,655.53,0.67357138]
[1746898380858,0.26182082,657.08,655.54,0.67357138]
[1746898381057,0.3043862,657.06,655.55,0.67357138]
[1746898381359,0.3043862,657.06,655.56,1.84951262]
[1746898381658,0.3043862,657.06,655.57,1.84951262]
[1746898381958,0.297056,657.06,655.58,0.95344523]
[1746898382257,0.297056,657.06,655.59,0.93632349]
[1746898382458,0.297056,657.06,655.6,0.6563635]
[1746898382652,0.297056,657.06,655.61,0.6563635]
[1746898382857,0.297056,657.06,655.62,0.6563635]
[1746898383058,0.297056,657.06,655.63,0.6563635]
[1746898383254,0.297056,657.06,655.64,0.6563635]
[1746898383451,0.297056,657.06,655.65,0.6563635]
[1746898383656,0.297056,657.06,655.66,0.93623735]
[1746898383850,0.297056,657.06,655.67,0.6563635]
[1746898384054,0.297056,657.06,655.68,1.83230474]
[1746898384251,0.297056,657.06,655.68,1.17594124]
[1746898384455,0.297056,657.06,655.69,0.93613192]
[1746898384656,0.297056,657.06,655.7,1.83219931]
[1746898384852,0.297056,657.06,655.71,0.65625807]
[1746898385050,0.297056,657.06,655.72,0.65625807]
[1746898385253,0.297056,657.06,655.73,0.93613192]
[1746898385557,0.297056,657.06,655.74,1.83219931]
[1746898385754,0.297056,657.06,655.75,0.65625807]
[1746898385962,0.26216327,657.05,655.76,0.93613192]
[1746898386158,0.26216327,657.05,655.77,1.83219931]
[1746898386457,0.3044001,657.03,655.78,0.65625807]
[1746898386651,0.3044001,657.03,655.79,0.65625807]
[1746898386953,0.3044001,657.03,655.8,0.93613192]
[1746898387158,0.3044001,657.03,655.53,1.23078722]
[1746898387159,0.3044001,657.03,655.81,1.83219931]
[1746898387357,0.3044001,657.03,655.82,0.65625807]
[1746898387554,0.3044001,657.03,655.83,1.83219931]
[1746898387757,0.3044001,657.03,655.84,0.65625807]
[1746898387958,0.3044001,657.03,655.85,0.65625807]
[1746898388259,0.3044001,657.03,655.86,1.83219931]
[1746898388459,0.26216462,657.02,655.87,0.65625807]
[1746898388660,0.26216462,657.02,655.86,1.45580926]
[1746898388661,0.304414,657.0,655.88,2.11206733]
[1746898388859,0.304414,657.0,655.89,0.65625807]
[1746898389058,0.26216462,656.99,655.9,0.65625807]
[1746898389360,0.26216462,656.99,655.91,1.83219931]
[1746898389361,0.3044279,656.97,655.91,1.83219931]
[1746898389562,0.3044279,656.97,655.92,0.65625807]
[1746898389759,0.3044279,656.97,655.93,1.83219931]
[1746898389955,0.3044279,656.97,655.94,0.65629582]
[1746898390155,0.3044279,656.97,655.95,0.65629582]
[1746898390359,0.3044279,656.97,655.96,0.65629582]
[1746898390654,0.3044279,656.97,655.97,0.65629582]
[1746898390859,0.3044279,656.97,655.98,0.65629582]
[1746898391059,0.3044279,656.97,655.99,1.83223706]
[1746898391255,0.3044279,656.97,656.0,0.65629582]
[1746898391463,0.3044279,656.97,656.01,0.65629582]
[1746898391657,0.3044279,656.97,656.02,1.83223706]
[1746898391855,0.3044279,656.97,656.03,0.65629439]
[1746898392057,0.3044279,656.97,656.04,0.65629439]
[1746898392257,0.3044279,656.97,656.05,0.64691294]
[1746898392463,0.3044279,656.97,656.02,1.17594124]
[1746898392659,0.3044279,656.97,656.03,1.17594124]
[1746898393164,0.3044279,656.97,656.04,1.17594124]
[1746898393671,0.3044279,656.97,656.05,1.17594124]
[1746898394163,0.3044279,656.97,656.06,1.17594124]
[1746898394963,0.3044279,656.97,656.07,1.17594124]
[1746898396067,0.3044279,656.97,656.08,1.17594124]
[1746898397262,0.3044279,656.97,656.09,1.17594124]
[1746898397668,0.3044279,656.97,656.1,1.17594124]
[1746898397869,0.3044279,656.97,656.11,1.17594124]
[1746898398266,0.3044279,656.97,656.12,1.17594124]
[1746898398769,0.3044279,656.97,656.13,1.17594124]
[1746898399372,0.3044279,656.97,656.14,1.17594124]
[1746898400072,0.3044279,656.97,656.15,1.17594124]
[1746898400672,0.3044279,656.97,656.16,1.17594124]
[1746898400873,0.3044279,656.97,656.17,1.17594124]
[1746898401075,0.3044279,656.97,656.18,1.17594124]
[1746898401569,0.3044279,656.97,656.19,1.17594124]
[1746898401773,0.3044279,656.97,656.2,1.17594124]
[1746898402174,0.3044279,656.97,656.21,1.17594124]
[1746898402470,0.3044279,656.97,656.22,1.17594124]
[1746898402675,0.3044279,656.97,656.23,1.17594124]
[1746898402974,0.3044279,656.97,656.24,1.17594124]
[1746898403474,0.3044279,656.97,656.25,1.17594124]
[1746898403683,0.3044279,656.97,656.26,1.17594124]
[1746898403878,0.3044279,656.97,656.27,1.17594124]
[1746898404075,0.3044279,656.97,656.28,1.17594124]
[1746898404280,0.3044279,656.97,656.29,0.65626672]
[1746898404476,0.3044279,656.97,656.3,0.65626672]
[1746898404678,0.3044279,656.97,656.31,1.83220796]
[1746898404976,0.3044279,656.97,656.32,0.65626672]
[1746898405278,0.3044279,656.97,656.33,0.93596165]
[1746898405470,0.3044279,656.97,656.32,1.17594124]
[1746898405471,0.3044279,656.97,656.34,0.93596165]
[1746898405676,0.3044279,656.97,656.35,0.93596165]
[1746898405874,0.3044279,656.97,656.36,2.11190289]
[1746898406074,0.3044279,656.97,656.37,0.93596165]
[1746898406276,0.3044279,656.97,656.38,1.83220796]
[1746898406473,0.3044279,656.97,656.39,0.65626672]
[1746898406680,0.3044279,656.97,656.4,0.93596165]
[1746898406876,0.3044279,656.97,656.41,0.65626672]
[1746898407076,0.3044279,656.97,656.42,1.83220796]
[1746898407273,0.3044279,656.97,656.43,0.65626672]
[1746898407478,0.3044279,656.97,656.44,1.83220796]
[1746898407770,0.3044279,656.97,656.45,0.65626672]
[1746898407975,0.3044279,656.97,656.46,0.65626672]
[1746898408277,0.3044279,656.97,656.45,1.17594124]
[1746898408278,0.3044279,656.97,656.47,0.65626672]
[1746898408479,0.3044279,656.97,656.48,0.65626672]
[1746898408679,0.3044279,656.97,656.49,0.65626672]
[1746898408973,0.3044279,656.97,656.5,1.83220796]
[1746898409177,0.3044279,656.97,656.51,0.65626672]
[1746898409376,0.3044279,656.97,656.52,1.83220796]
[1746898409579,0.3044279,656.97,656.53,0.65626672]
[1746898409779,0.3044279,656.97,656.54,0.65626672]
[1746898409973,0.3044279,656.97,656.55,1.83220796]
[1746898410278,0.3044279,656.97,656.56,0.65626672]
[1746898410473,0.3044279,656.97,656.57,0.65626672]
[1746898410773,0.3044279,656.97,656.58,0.65626672]
[1746898410976,0.3044279,656.97,656.59,0.65626672]
[1746898411179,0.3044279,656.97,656.6,0.65626672]
[1746898411377,0.3044279,656.97,656.61,1.83220796]
[1746898411576,0.3044279,656.97,656.62,0.65626672]
[1746898411779,0.3044279,656.97,656.61,1.17594124]
[1746898411780,0.3044279,656.97,656.63,0.65626672]
[1746898412078,0.3044279,656.97,656.64,1.83220796]
[1746898412279,0.3044279,656.97,656.65,0.65626672]
[1746898412472,0.3044279,656.97,656.66,0.65626672]
[1746898412677,0.3044279,656.97,656.67,1.83220796]
[1746898412878,0.3044279,656.97,656.68,0.65695003]
[1746898413079,0.3044279,656.97,656.69,0.65695003]
[1746898413279,0.3044279,656.97,656.7,0.65695003]
[1746898413476,0.3044279,656.97,656.71,1.83289127]
[1746898413779,0.3044279,656.97,656.72,0.65695003]
[1746898413978,0.3044279,656.97,656.73,0.65695003]
[1746898414178,0.3044279,656.97,656.74,0.65695003]
[1746898414381,0.3044279,656.97,656.75,0.65695003]
[1746898414581,0.3044279,656.97,656.76,0.65695003]
[1746898414779,0.3044279,656.97,656.77,1.83289127]
[1746898415077,0.3044279,656.97,656.78,1.83289127]
[1746898415279,0.3044279,656.97,656.79,0.65695003]
[1746898415484,0.3044279,656.97,656.8,0.65695003]
[1746898415779,0.3044279,656.97,656.81,1.83289127]
[1746898415975,0.3044279,656.97,656.82,0.65695003]
[1746898416181,0.3044279,656.97,656.83,1.17594124]
[1746898416680,0.3044279,656.97,656.84,1.17594124]
[1746898417183,0.3044279,656.97,656.85,1.17594124]
[1746898417476,0.3044279,656.97,655.59,0.9657312]
[1746898417676,0.3044279,656.97,655.6,0.93619723]
[1746898417875,0.3044279,656.97,655.61,0.93619723]
[1746898418176,0.3044279,656.97,655.62,2.10835509]
[1746898418378,0.3044279,656.97,655.63,0.65644499]
[1746898418577,0.3044279,656.97,655.64,0.93619723]
[1746898418782,0.3044279,656.97,655.65,2.10835509]
[1746898419082,0.3044279,656.97,655.66,0.93619723]
[1746898419278,0.3044279,656.97,655.67,2.10835509]
[1746898419479,0.3044279,656.97,655.68,0.93619723]
[1746898419678,0.3044279,656.97,655.69,2.10835509]
[1746898419882,0.3044279,656.97,655.7,0.93619723]
[1746898420084,0.3044279,656.97,655.71,0.65644499]
[1746898420377,0.3044279,656.97,655.72,0.65644499]
[1746898420581,0.3044279,656.97,655.73,1.82860285]
[1746898420777,0.3044279,656.97,655.74,0.65644499]
[1746898420984,0.3044279,656.97,655.75,0.65644499]
[1746898421181,0.3044279,656.97,655.76,0.65644499]
[1746898421382,0.3044279,656.97,655.77,0.65644499]
[1746898421582,0.3044279,656.97,655.78,1.82860285]
[1746898421782,0.3044279,656.97,655.79,0.65644499]
[1746898421983,0.3044279,656.97,655.8,0.65678781]
[1746898422185,0.3044279,656.97,655.81,0.6568124]
[1746898422386,0.3044279,656.97,655.82,0.6568124]
[1746898422585,0.3044279,656.97,655.83,1.82897026]
[1746898422787,0.3044279,656.97,655.84,0.6568124]
[1746898423085,0.3044279,656.97,655.85,1.82897026]
[1746898423285,0.3044279,656.97,655.86,1.82897026]
[1746898423482,0.3044279,656.97,655.87,1.82897026]
[1746898423683,0.3044279,656.97,655.88,0.65673672]
[1746898423878,0.3044279,656.97,655.89,0.65673672]
[1746898424083,0.3044279,656.97,655.9,1.82889458]
[1746898424284,0.3044279,656.97,655.91,0.65677236]
[1746898424581,0.3044279,656.97,655.92,0.65677236]
[1746898424780,0.3044279,656.97,655.93,1.82893022]
[1746898424986,0.3044279,656.97,655.94,0.65677236]
[1746898425286,0.3044279,656.97,655.95,1.82893022]
[1746898425480,0.3044279,656.97,655.96,0.65677236]
[1746898425684,0.3044279,656.97,655.97,0.65672891]
[1746898425985,0.3044279,656.97,655.98,1.82888677]
[1746898426185,0.3044279,656.97,655.99,0.65672891]
[1746898426386,0.3044279,656.97,656.0,0.65672891]
[1746898426586,0.3044279,656.97,656.01,1.82888677]
[1746898426886,0.3044279,656.97,656.02,0.93654404]
[1746898427082,0.3044279,656.97,656.03,0.65672891]
[1746898427287,0.3044279,656.97,656.04,1.82888677]
[1746898427590,0.3044279,656.97,656.05,0.65671594]
[1746898427783,0.3044279,656.97,656.06,1.8288738]
[1746898427982,0.3044279,656.97,656.07,0.65671594]
[1746898428182,0.3044279,656.97,656.08,0.65671594]
[1746898428381,0.3044279,656.97,656.09,0.65671594]
[1746898428582,0.3044279,656.97,656.1,1.8288738]
[1746898428888,0.3044279,656.97,656.11,1.8288738]
[1746898429188,0.3044279,656.97,656.12,0.65671594]
[1746898429388,0.3044279,656.97,656.13,1.8288738]
[1746898429589,0.3044279,656.97,656.14,0.65671594]
[1746898429788,0.3044279,656.97,656.15,1.8288738]
[1746898429992,0.3044279,656.97,656.16,0.65671594]
[1746898430190,0.3044279,656.97,656.17,0.65671594]
[1746898430383,0.3044279,656.97,656.18,0.65671594]
[1746898430583,0.3044279,656.97,656.19,0.65671594]
[1746898430886,0.3044279,656.97,656.2,0.65671594]
[1746898431084,0.3044279,656.97,656.21,1.8288738]
[1746898431284,0.3044279,656.97,656.22,0.65671594]
[1746898431487,0.3044279,656.97,656.23,1.8288738]
[1746898431688,0.3044279,656.97,656.24,0.65671594]
[1746898431888,0.3044279,656.97,656.25,0.65671594]
[1746898432090,0.3044279,656.97,656.26,0.65671594]
[1746898432292,0.3044279,656.97,656.27,0.65671594]
[1746898432493,0.3044279,656.97,656.28,1.8288738]
[1746898432684,0.3044279,656.97,656.29,0.65671594]
[1746898432889,0.3044279,656.97,656.3,1.8288738]
[1746898433190,0.3044279,656.97,656.31,0.65671594]
[1746898433391,0.3044279,656.97,656.32,0.65671594]
[1746898433694,0.3044279,656.97,656.33,1.8288738]
[1746898433893,0.3044279,656.97,656.34,1.8288738]
[1746898434192,0.3044279,656.97,656.35,0.65671594]
[1746898434392,0.3044279,656.97,656.36,0.65671594]
[1746898434592,0.3044279,656.97,656.37,0.65603445]
[1746898434892,0.3044279,656.97,656.38,0.65603445]
[1746898435091,0.3044279,656.97,656.39,0.65603445]
[1746898435292,0.3044279,656.97,656.4,0.65603445]
[1746898435492,0.3044279,656.97,656.41,1.82819231]
[1746898435692,0.3044279,656.97,656.42,1.82819231]
[1746898435894,0.3044279,656.97,656.43,0.65603445]
[1746898436095,0.3044279,656.97,656.44,1.82819231]
[1746898436293,0.3044279,656.97,656.45,0.65603445]
[1746898436593,0.3044279,656.97,656.46,1.82819231]
[1746898436799,0.3044279,656.97,656.47,0.65603445]
[1746898436994,0.3044279,656.97,656.48,0.65603445]
[1746898437291,0.3044279,656.97,656.46,1.17215786]
[1746898437292,0.3044279,656.97,656.49,1.82819231]
[1746898437496,0.3044279,656.97,656.5,0.65603445]
[1746898437694,0.3044279,656.97,656.51,0.65603445]
[1746898437895,0.3044279,656.97,656.52,0.65603445]
[1746898438189,0.3044279,656.97,656.53,0.65603445]
[1746898438394,0.3044279,656.97,656.54,0.65603445]
[1746898438693,0.3044279,656.97,656.55,1.82819231]
[1746898438895,0.3044279,656.97,656.56,0.65603445]
[1746898439096,0.3044279,656.97,656.57,0.65603445]
[1746898439395,0.3044279,656.97,656.58,1.82819231]
[1746898439589,0.3044279,656.97,656.59,0.65603445]
[1746898439791,0.3044279,656.97,656.6,0.65603445]
[1746898439995,0.3044279,656.97,656.61,0.65603445]
[1746898440194,0.3044279,656.97,656.62,0.65603445]
[1746898440395,0.3044279,656.97,656.63,0.65603445]
[1746898440691,0.3044279,656.97,656.64,0.65603445]
[1746898440891,0.3044279,656.97,656.65,0.65603445]
[1746898441091,0.3044279,656.97,656.66,1.82819231]
[1746898441395,0.3044279,656.97,656.67,0.65603445]
[1746898441594,0.3044279,656.97,656.68,0.65603445]
[1746898441796,0.3044279,656.97,656.69,0.65603445]
[1746898441989,0.3044279,656.97,656.7,0.65603445]
[1746898442291,0.3044279,656.97,656.71,0.65603445]
[1746898442493,0.3044279,656.97,656.72,0.65603445]
[1746898442694,0.3044279,656.97,656.73,0.65603445]
[1746898442892,0.3044279,656.97,656.74,1.82819231]
[1746898443100,0.3044279,656.97,656.75,0.65603445]
[1746898443399,0.3044279,656.97,656.76,1.82819231]
[1746898443597,0.3044279,656.97,656.77,0.65603445]
[1746898443797,0.3044279,656.97,656.78,0.65603445]
[1746898443999,0.3044279,656.97,656.79,1.82819231]
[1746898444202,0.3044279,656.97,656.8,0.65603445]
[1746898444400,0.3044279,656.97,656.79,1.17215786]
[1746898444600,0.3044279,656.97,656.8,1.17215786]
[1746898445006,0.30429821,657.25,656.8,1.17215786]
[1746898445203,0.30429821,657.25,656.81,1.17215786]
[1746898445803,0.30429821,657.25,656.82,1.17215786]
[1746898446001,0.30429821,657.25,656.83,1.17215786]
[1746898446501,0.30429821,657.25,656.84,1.17215786]
[1746898447105,0.30429821,657.25,656.85,1.17215786]
[1746898447705,0.30429821,657.25,656.86,1.17215786]
[1746898448101,0.30429821,657.25,656.87,1.17215786]
[1746898448706,0.30429821,657.25,656.88,1.17215786]
[1746898449107,0.30429821,657.25,656.89,0.65563721]
[1746898449302,0.30429821,657.25,656.9,1.82779507]
[1746898449503,0.30429821,657.25,656.91,0.65563721]
[1746898449705,0.30429821,657.25,656.92,1.82779507]
[1746898449902,0.30429821,657.25,656.93,0.65563721]
[1746898450109,0.30429821,657.25,656.94,0.65563721]
[1746898450404,0.30429821,657.25,656.95,1.82779507]
[1746898450603,0.30429821,657.25,656.96,0.65563721]
[1746898450906,0.30429821,657.25,656.97,1.82779507]
[1746898451107,0.30429821,657.25,656.98,0.65563721]
[1746898451306,0.30429821,657.25,656.99,0.65563721]
[1746898451602,0.30429821,657.25,657.0,1.82779507]
[1746898451802,0.30429821,657.25,657.01,0.65563721]
[1746898452009,0.30429821,657.25,657.02,0.65563721]
[1746898452202,0.30429821,657.25,657.03,1.82779507]
[1746898452405,0.30429821,657.25,657.04,0.65563721]
[1746898452604,0.30429821,657.25,657.05,0.65563721]
[1746898452806,0.30429821,657.25,657.06,1.17215786]
[1746898453208,0.30429821,657.25,656.26,0.9657312]
[1746898453408,0.30429821,657.25,656.27,0.65437919]
[1746898453609,0.30429821,657.25,656.28,0.93420091]
[1746898453809,0.30429821,657.25,656.29,2.10598711]
[1746898454008,0.30429821,657.25,656.3,0.93420091]
[1746898454209,0.30429821,657.25,656.31,0.93420091]
[1746898454410,0.30429821,657.25,656.32,2.10598711]
[1746898454606,0.30429821,657.25,656.33,2.10598711]
[1746898454803,0.30429821,657.25,656.34,0.93420091]
[1746898455007,0.30429821,657.25,656.35,0.93420091]
[1746898455208,0.30429821,657.25,656.36,0.65454481]
[1746898455410,0.30429821,657.25,656.37,0.65454481]
[1746898455715,0.30429821,657.25,656.36,1.1717862]
[1746898455716,0.30429821,657.25,656.38,0.65454481]
[1746898455912,0.30429821,657.25,656.39,0.65454481]
[1746898456110,0.30429821,657.25,656.4,1.82633101]
[1746898456307,0.30429821,657.25,656.41,1.82633101]
[1746898456506,0.30429821,657.25,656.42,0.65454481]
[1746898456705,0.30429821,657.25,656.43,1.82633101]
[1746898456910,0.30429821,657.25,656.44,0.65516242]
[1746898457112,0.30429821,657.25,656.45,0.65516242]
[1746898457312,0.30429821,657.25,656.46,0.65516242]
[1746898457514,0.30429821,657.25,656.47,1.82694862]
[1746898457709,0.30429821,657.25,656.48,0.65516242]
[1746898457912,0.30429821,657.25,656.49,0.65516242]
[1746898458210,0.30429821,657.25,656.5,0.65516242]
[1746898458411,0.30429821,657.25,656.51,1.82694862]
[1746898458608,0.30429821,657.25,656.52,0.65579686]
[1746898458808,0.30429821,657.25,656.53,0.65579686]
[1746898459008,0.30429821,657.25,656.54,1.82758306]
[1746898459213,0.30429821,657.25,656.55,0.65579686]
[1746898459412,0.30429821,657.25,656.56,1.82758306]
[1746898459612,0.30429821,657.25,656.57,0.65579686]
[1746898459814,0.30429821,657.25,656.58,0.65579686]
[1746898460019,0.30429821,657.25,656.59,0.65579686]
[1746898460217,0.30429821,657.25,656.6,0.65579686]
[1746898460418,0.30429821,657.25,656.61,1.82724372]
[1746898460617,0.30429821,657.25,656.62,0.65545752]
[1746898460818,0.30429821,657.25,656.63,0.65545752]
[1746898461018,0.30429821,657.25,656.64,0.65545752]
[1746898461213,0.30429821,657.25,656.65,0.65545752]
[1746898461418,0.30429821,657.25,656.66,0.65545752]
[1746898461618,0.30429821,657.25,656.67,1.82724372]
[1746898461820,0.30429821,657.25,656.68,0.65545752]
[1746898462014,0.30429821,657.25,656.69,0.65545752]
[1746898462219,0.30429821,657.25,656.7,0.63381337]
[1746898462416,0.30429821,657.25,656.71,1.80559957]
[1746898462619,0.30429821,657.25,656.72,0.63381337]
[1746898462816,0.30429821,657.25,656.73,0.63381337]
[1746898463021,0.30429821,657.25,656.74,1.80559957]
[1746898463220,0.30429821,657.25,656.75,0.63402635]
[1746898463418,0.30429821,657.25,656.74,1.1717862]
[1746898463621,0.30429821,657.25,656.76,1.1717862]
[1746898464417,0.30429821,657.25,656.77,1.1717862]
[1746898464823,0.30429821,657.25,656.78,1.1717862]
[1746898465025,0.30429821,657.25,655.59,0.9657312]
[1746898465224,0.30429821,657.25,655.6,0.63418962]
[1746898465426,0.30429821,657.25,655.61,0.63418962]
[1746898465626,0.30429821,657.25,655.62,2.09016892]
[1746898465822,0.30429821,657.25,655.63,0.91395708]
[1746898466029,0.30429821,657.25,655.64,0.63418962]
[1746898466227,0.30429821,657.25,655.65,0.63418962]
[1746898466426,0.30429821,657.25,655.66,0.63418962]
[1746898466624,0.30429821,657.25,655.67,0.63418962]
[1746898466824,0.30429821,657.25,655.61,0.26498841]
[1746898466825,0.30429821,657.25,655.68,2.09017088]
[1746898467027,0.30429821,657.25,655.69,0.91395904]
[1746898467231,0.30429821,657.25,655.7,0.91395904]
[1746898467432,0.30429821,657.25,655.71,2.09007254]
[1746898467626,0.30429821,657.25,655.72,0.9138607]
[1746898467826,0.30429821,657.25,655.73,2.09007254]
[1746898468129,0.30429821,657.25,655.74,0.63409128]
[1746898468327,0.30429821,657.25,655.75,0.63409128]
[1746898468632,0.30429821,657.25,655.76,1.81030312]
[1746898468830,0.30429821,657.25,655.77,0.63409128]
[1746898469124,0.30429821,657.25,655.78,0.63409128]
[1746898469332,0.30429821,657.25,655.79,0.63409128]
[1746898469528,0.30429821,657.25,655.8,0.63409128]
[1746898469729,0.30429821,657.25,655.81,0.9138607]
[1746898469930,0.30429821,657.25,655.82,0.63409128]
[1746898470136,0.30429821,657.25,655.83,0.63409128]
[1746898470335,0.30429821,657.25,655.84,2.09007254]
[1746898470538,0.30429821,657.25,655.85,0.63409128]
[1746898470837,0.30429821,657.25,655.86,0.63409128]
[1746898471037,0.30429821,657.25,655.87,1.81030312]
[1746898471238,0.30429821,657.25,655.88,0.63409128]
[1746898471439,0.30429821,657.25,655.89,0.63409128]
[1746898471638,0.30429821,657.25,655.9,1.81030312]
[1746898471839,0.30429821,657.25,655.91,0.63409128]
[1746898472038,0.30429821,657.25,655.92,0.9138607]
[1746898472234,0.30429821,657.25,655.93,1.81030312]
[1746898472433,0.30429821,657.25,655.94,0.63409128]
[1746898472634,0.30429821,657.25,655.95,0.91367283]
[1746898472837,0.30429821,657.25,655.96,0.63390341]
[1746898473034,0.30429821,657.25,655.97,1.81011525]
[1746898473239,0.30429821,657.25,655.98,0.63390341]
[1746898473443,0.30429821,657.25,655.99,0.63390341]
[1746898473740,0.30429821,657.25,655.98,0.27976942]
[1746898473741,0.30429821,657.25,656.0,0.91367283]
[1746898473941,0.30429821,657.25,656.01,0.91367283]
[1746898474140,0.30429821,657.25,656.02,0.91367283]
[1746898474441,0.30429821,657.25,656.03,0.63390341]
[1746898474644,0.30429821,657.25,656.04,1.81011525]
[1746898474942,0.30429821,657.25,656.05,2.08988467]
[1746898475242,0.30429821,657.25,656.06,0.91367283]
[1746898475442,0.30429821,657.25,656.07,0.91367283]
[1746898475645,0.30429821,657.25,655.87,0.9657312]
[1746898475646,0.30429821,657.25,656.08,2.08988467]
[1746898475942,0.30429821,657.25,656.09,0.91367283]
[1746898476148,0.30429821,657.25,656.1,0.91367283]
[1746898476343,0.30429821,657.25,656.11,2.08988467]
[1746898476537,0.30429821,657.25,656.12,0.63390341]
[1746898476741,0.30429821,657.25,656.13,0.63390341]
[1746898476948,0.30429821,657.25,656.14,0.91367283]
[1746898477146,0.30429821,657.25,656.15,0.91367283]
[1746898477346,0.30429821,657.25,656.16,0.91367283]
[1746898477539,0.30429821,657.25,656.17,2.08988467]
[1746898477738,0.30429821,657.25,656.18,0.63390341]
[1746898477944,0.30429821,657.25,656.19,0.63248181]
[1746898478146,0.30429821,657.25,656.2,0.63248181]
[1746898478347,0.30429821,657.25,656.21,1.80869365]
[1746898478549,0.30429821,657.25,656.22,0.63248181]
[1746898478742,0.30429821,657.25,656.23,0.91225123]
[1746898478947,0.30429821,657.25,656.24,2.08846307]
[1746898479145,0.30429821,657.25,656.25,0.91225123]
[1746898479345,0.30429821,657.25,656.26,1.80869365]
[1746898479542,0.30429821,657.25,656.26,1.17621184]
[1746898479747,0.30429821,657.25,656.27,0.63264755]
[1746898479943,0.30429821,657.25,656.28,0.63264755]
[1746898480148,0.30429821,657.25,656.29,0.63264755]
[1746898480345,0.30429821,657.25,656.3,0.63264755]
[1746898480544,0.30429821,657.25,656.31,0.63264755]
[1746898480747,0.30429821,657.25,656.32,2.08862881]
[1746898480947,0.30429821,657.25,656.33,0.91241697]
[1746898481143,0.30429821,657.25,656.34,0.63264755]
[1746898481342,0.30429821,657.25,656.35,0.63254001]
[1746898481544,0.30429821,657.25,656.36,0.63254001]
[1746898481747,0.30429821,657.25,656.37,0.63254001]
[1746898481947,0.30429821,657.25,656.38,0.63254001]
[1746898482143,0.30429821,657.25,656.39,0.63254001]
[1746898482346,0.30429821,657.25,656.4,1.80875185]
[1746898482546,0.30429821,657.25,656.41,0.63254001]
[1746898482748,0.30429821,657.25,656.42,0.63254001]
[1746898482943,0.30429821,657.25,656.43,1.80875185]
[1746898483147,0.30429821,657.25,656.44,0.63254001]
[1746898483348,0.30429821,657.25,656.45,0.63254001]
[1746898483543,0.30429821,657.25,656.46,0.63254001]
[1746898483749,0.30429821,657.25,656.47,1.80875185]
[1746898484048,0.30429821,657.25,656.48,0.63254001]
[1746898484251,0.30429821,657.25,656.49,0.63254001]
[1746898484447,0.30429821,657.25,656.5,0.63254001]
[1746898484647,0.30429821,657.25,656.51,0.63254001]
[1746898484947,0.30429821,657.25,656.52,0.63240533]
[1746898485149,0.30429821,657.25,656.53,1.80861717]
[1746898485350,0.30429821,657.25,656.54,0.63240533]
[1746898485549,0.30429821,657.25,656.55,1.80861717]
[1746898485749,0.30429821,657.25,656.56,0.63240533]
[1746898485949,0.30429821,657.25,656.57,0.63240533]
[1746898486150,0.30429821,657.25,656.58,0.63240533]
[1746898486350,0.30429821,657.25,656.59,1.80861717]
[1746898486650,0.30429821,657.25,656.6,0.63240533]
[1746898486851,0.30429821,657.25,656.61,0.63240533]
[1746898487048,0.30429821,657.25,656.62,1.80861717]
[1746898487348,0.30429821,657.25,656.63,0.63240533]
[1746898487551,0.30429821,657.25,656.64,0.63240533]
[1746898487752,0.30429821,657.25,656.65,0.63240533]
[1746898488050,0.30429821,657.25,656.66,0.63240533]
[1746898488250,0.30429821,657.25,656.67,0.63240533]
[1746898488453,0.30429821,657.25,656.68,0.63478964]
[1746898488655,0.30429821,657.25,656.69,1.81100148]
[1746898488855,0.30429821,657.25,656.7,0.63478964]
[1746898489051,0.30429821,657.25,656.71,0.63478964]
[1746898489252,0.30429821,657.25,656.72,0.63478964]
[1746898489548,0.30429821,657.25,656.73,1.81100148]
[1746898489852,0.30429821,657.25,656.74,1.81100148]
[1746898490053,0.30429821,657.25,656.75,0.63478964]
[1746898490254,0.30429821,657.25,656.76,0.63478964]
[1746898490453,0.30429821,657.25,656.77,1.81100148]
[1746898490752,0.30429821,657.25,656.78,0.63478964]
[1746898491054,0.30429821,657.25,656.79,1.81100148]
[1746898491253,0.30429821,657.25,656.8,0.63478964]
[1746898491453,0.30429821,657.25,656.81,1.81100148]
[1746898491649,0.30429821,657.25,656.82,0.63478964]
[1746898491850,0.30429821,657.25,656.83,0.63478964]
[1746898492054,0.30429821,657.25,656.84,0.63471816]